[Event "19th Delhi GM Open 2022"]
[Site "Delhi"]
[Date "2022.03.27"]
[Round "8.3"]
[White "Karthik Venkataraman"]
[Black "Gukesh D"]
[Result "0-1"]
[ECO "E10"]
[WhiteElo "2485"]
[BlackElo "2614"]
[Annotator "ChessBase"]
[PlyCount "58"]
[EventDate "2022.03.22"]
[EventType "swiss"]
[EventCountry "IND"]
[SourceTitle "playchess.com"]
[Source "ChessBase"]
[SourceQuality "1"]
[TimeControl "5400+30"]

1. d4 {[%emt 0:00:04]} Nf6 {[%emt 0:01:05]} 2. c4 {[%emt 0:00:08]} e6 {[%emt 0:00:25]} 3. Nf3 {[%emt 0:00:08]} d5 {[%emt 0:00:43]} 4. g3 {[%emt 0:00:11]} Bb4+ {[%emt 0:02:22]} 5. Bd2 {[%emt 0:00:12]} a5 {[%emt 0:00:58]} 6. Bg2 {[%emt 0:00:52]} O-O {[%emt 0:00:25]} 7. Qc2 {[%emt 0:00:31]} c5 {[%emt 0:01:17]} 8. cxd5 {[%emt 0:01:34]} cxd4 {[%emt 0:00:07]} 9. Nxd4 {[%emt 0:00:06]} Qb6 {[%emt 0:00:17]} 10. e3 {[%emt 0:00:26]} exd5 {[%emt 0:00:05]} 11. O-O {[%emt 0:00:26]} Nc6 {[%emt 0:00:05]} 12. Nxc6 {[%emt 0:02:19]} bxc6 {[%emt 0:00:04]} 13. Nc3 {[%emt 0:01:11]} h5 {[%emt 0:02:41]} 14. Na4 {[%emt 0:04:45]} Qd8 {[%emt 0:08:54]} 15. Rfc1 {[%emt 0:01:36]} h4 {[%emt 0:01:33]} 16. Bxb4 {[%emt 0:03:56]} axb4 {[%emt 0:00:06]} 17. b3 {[%emt 0:00:10]} h3 {[%emt 0:15:12]} 18. Bh1 {[%emt 0:02:12]} Rb8 {[%emt 0:02:09]} 19. Qxc6 {[%emt 0:02:32]} d4 {[%emt 0:02:48]} 20. Qc5 {[%emt 0:11:11]} d3 {[%emt 0:06:36]} 21. Rd1 {[%emt 0:05:03]} Bb7 {[%emt 0:15:10]} 22. f3 {[%emt 0:02:28]} Re8 {[%emt 0:03:11]} 23. e4 {[%emt 0:20:20]} Ba6 {[%emt 0:01:17]} 24. Rd2 {[%emt 0:04:05]} Rc8 {[%emt 0:02:38]} 25. Qxb4 {[%emt 0:04:11]} Rc2 {[%emt 0:00:32]} 26. Rad1 {[%emt 0:00:06]} Qc7 {[%emt 0:01:48]} 27. Rf2 {[%emt 0:13:55]} Nd5 {[%emt 0:09:52]} 28. Qe1 {[%emt 0:09:35]} Qa7 {[%emt 0:00:41]} 29. a3 {[%emt 0:01:36]} Re2 {[%emt 0:00:25]} 0-1

[Event "19th Delhi GM Open 2022"]
[Site "Delhi"]
[Date "2022.03.27"]
[Round "8.6"]
[White "Neelash Saha"]
[Black "Delgado Ramirez, Neuris"]
[Result "1-0"]
[ECO "B30"]
[WhiteElo "2445"]
[BlackElo "2615"]
[Annotator "ChessBase"]
[PlyCount "117"]
[EventDate "2022.03.22"]
[EventType "swiss"]
[EventCountry "IND"]
[SourceTitle "playchess.com"]
[Source "ChessBase"]
[SourceQuality "1"]
[TimeControl "5400+30"]

1. e4 {[%emt 0:00:05]} c5 {[%emt 0:01:40]} 2. Nf3 {[%emt 0:00:08]} Nc6 {[%emt 0:00:26]} 3. Bb5 {[%emt 0:00:06]} e6 {[%emt 0:00:08]} 4. O-O {[%emt 0:00:07]} Nge7 {[%emt 0:00:07]} 5. Re1 {[%emt 0:01:33]} b6 {[%emt 0:00:14]} 6. b3 {[%emt 0:04:31]} Bb7 {[%emt 0:06:26]} 7. Bb2 {[%emt 0:00:06]} Qc7 {[%emt 0:00:12]} 8. Bf1 {[%emt 0:00:29]} Ng6 {[%emt 0:02:15]} 9. Nc3 {[%emt 0:03:18]} Be7 {[%emt 0:03:04]} 10. Nb5 {[%emt 0:06:57]} Qb8 {[%emt 0:00:35]} 11. Bxg7 {[%emt 0:04:02]} Rg8 {[%emt 0:00:03]} 12. Bb2 {[%emt 0:00:06]} h5 {[%emt 0:01:46]} 13. d4 {[%emt 0:06:45]} a6 {[%emt 0:02:18]} 14. Nc3 {[%emt 0:04:44]} cxd4 {[%emt 0:01:30]} 15. Nxd4 {[%emt 0:00:10]} Nxd4 {[%emt 0:05:52]} 16. Qxd4 {[%emt 0:01:00]} Ne5 {[%emt 0:05:01]} 17. Be2 {[%emt 0:02:15]} Bc5 {[%emt 0:00:43]} 18. Qd2 {[%emt 0:02:03]} Qc7 {[%emt 0:04:14]} 19. Bxh5 {[%emt 0:03:51]} O-O-O {[%emt 0:11:05]} 20. Na4 {[%emt 0:00:55]} f5 {[%emt 0:01:19]} 21. Qc3 {[%emt 0:05:51]} Ng6 {[%emt 0:05:48]} 22. b4 {[%emt 0:32:51]} Nf4 {[%emt 0:00:44]} 23. g3 {[%emt 0:01:19]} Bd6 {[%emt 0:11:40]} 24. Bf3 {[%emt 0:03:56]} Qxc3 {[%emt 0:04:19]} 25. Bxc3 {[%emt 0:01:14]} b5 {[%emt 0:00:07]} 26. Nc5 {[%emt 0:00:29]} Bxc5 {[%emt 0:00:10]} 27. bxc5 {[%emt 0:00:06]} Nh3+ {[%emt 0:01:35]} 28. Kf1 {[%emt 0:00:47]} Ng5 {[%emt 0:01:05]} 29. Bg2 {[%emt 0:00:06]} Nxe4 {[%emt 0:00:27]} 30. Bb4 {[%emt 0:02:03]} Bc6 {[%emt 0:02:44]} 31. Rad1 {[%emt 0:00:30]} Kb7 {[%emt 0:00:45]} 32. Rd4 {[%emt 0:03:28]} a5 {[%emt 0:01:12]} 33. Bxe4 {[%emt 0:02:05]} fxe4 {[%emt 0:02:11]} 34. Bd2 {[%emt 0:00:05]} Bd5 {[%emt 0:00:35]} 35. a3 {[%emt 0:01:19]} Rc8 {[%emt 0:00:58]} 36. Bxa5 {[%emt 0:00:43]} Rxc5 {[%emt 0:00:03]} 37. c3 {[%emt 0:00:06]} e5 {[%emt 0:02:26]} 38. Rd2 {[%emt 0:01:17]} Bc4+ {[%emt 0:00:16]} 39. Kg1 {[%emt 0:00:50]} d5 {[%emt 0:01:54]} 40. f3 {[%emt 0:00:34]} Bd3 {[%emt 0:01:24]} 41. fxe4 {[%emt 0:00:04]} Bxe4 {[%emt 0:00:12]} 42. Rf2 {[%emt 0:00:27]} Rc6 {[%emt 0:00:50]} 43. Rf7+ {[%emt 0:00:33]} Ka6 {[%emt 0:00:02]} 44. Bb4 {[%emt 0:00:07]} Kb6 {[%emt 0:00:07]} 45. Re7 {[%emt 0:00:25]} Rg5 {[%emt 0:00:03]} 46. Rf1 {[%emt 0:00:26]} Rc7 {[%emt 0:05:49]} 47. Rf6+ {[%emt 0:00:27]} Kb7 {[%emt 0:00:02]} 48. Ree6 {[%emt 0:00:29]} Rcg7 {[%emt 0:07:27]} 49. Rb6+ {[%emt 0:01:34]} Kc7 {[%emt 0:00:27]} 50. Rxb5 {[%emt 0:03:25]} R5g6 {[%emt 0:01:06]} 51. Rbb6 {[%emt 0:01:59]} Rxf6 {[%emt 0:00:49]} 52. Rxf6 {[%emt 0:00:05]} Rg5 {[%emt 0:00:14]} 53. Kf2 {[%emt 0:00:55]} d4 {[%emt 0:00:07]} 54. h4 {[%emt 0:00:58]} Rh5 {[%emt 0:00:17]} 55. Ke2 {[%emt 0:00:53]} Bc6 {[%emt 0:00:30]} 56. Kd3 {[%emt 0:01:07]} Bb5+ {[%emt 0:00:07]} 57. Kd2 {[%emt 0:00:41]} Bc6 {[%emt 0:01:18]} 58. cxd4 {[%emt 0:00:32]} exd4 {[%emt 0:00:04]} 59. Rd6 {[%emt 0:00:07]} 1-0

[Event "19th Delhi GM Open 2022"]
[Site "Delhi"]
[Date "2022.03.27"]
[Round "8.8"]
[White "Deepan Chakkravarthy J."]
[Black "Poormosavi, Seyed Kian"]
[Result "0-1"]
[ECO "A50"]
[WhiteElo "2520"]
[BlackElo "2229"]
[Annotator "ChessBase"]
[PlyCount "92"]
[EventDate "2022.03.22"]
[EventType "swiss"]
[EventCountry "IND"]
[SourceTitle "playchess.com"]
[Source "ChessBase"]
[SourceQuality "1"]
[TimeControl "5400+30"]

1. d4 {[%emt 0:03:36]} Nf6 {[%emt 0:00:13]} 2. c4 {[%emt 0:00:05]} b6 {[%emt 0:00:07]} 3. Nc3 {[%emt 0:03:50]} Bb7 {[%emt 0:00:18]} 4. Bf4 {[%emt 0:01:11]} e6 {[%emt 0:02:08]} 5. Nf3 {[%emt 0:00:21]} Bb4 {[%emt 0:04:28]} 6. e3 {[%emt 0:07:19]} Ne4 {[%emt 0:04:33]} 7. Qc2 {[%emt 0:00:54]} f5 {[%emt 0:18:34]} 8. h4 {[%emt 0:01:15]} O-O {[%emt 0:00:51]} 9. h5 {[%emt 0:05:56]} c5 {[%emt 0:07:03]} 10. d5 {[%emt 0:02:18]} d6 {[%emt 0:02:57]} 11. O-O-O {[%emt 0:09:14]} Bxc3 {[%emt 0:01:23]} 12. bxc3 {[%emt 0:00:06]} e5 {[%emt 0:00:23]} 13. Bh2 {[%emt 0:02:47]} b5 {[%emt 0:01:04]} 14. Bd3 {[%emt 0:04:40]} bxc4 {[%emt 0:02:17]} 15. Bxe4 {[%emt 0:01:50]} fxe4 {[%emt 0:00:04]} 16. Qxe4 {[%emt 0:00:05]} Nd7 {[%emt 0:00:43]} 17. Qc2 {[%emt 0:09:16]} h6 {[%emt 0:06:14]} 18. Bg3 {[%emt 0:02:36]} Qa5 {[%emt 0:02:53]} 19. e4 {[%emt 0:09:44]} Bc8 {[%emt 0:04:51]} 20. Kb2 {[%emt 0:06:31]} Nb6 {[%emt 0:01:35]} 21. Nd2 {[%emt 0:01:20]} Na4+ {[%emt 0:01:57]} 22. Ka1 {[%emt 0:00:05]} Ba6 {[%emt 0:00:13]} 23. Bh4 {[%emt 0:13:11]} Rab8 {[%emt 0:05:03]} 24. Rb1 {[%emt 0:00:12]} Rxb1+ {[%emt 0:02:55]} 25. Nxb1 {[%emt 0:01:59]} Rb8 {[%emt 0:00:15]} 26. Rh3 {[%emt 0:02:11]} Nb2 {[%emt 0:14:26]} 27. Qxb2 {[%emt 0:03:14]} Rxb2 {[%emt 0:00:06]} 28. Kxb2 {[%emt 0:00:02]} Qa4 {[%emt 0:05:35]} 29. Rh1 {[%emt 0:04:22]} Qe8 {[%emt 0:00:28]} 30. Bg3 {[%emt 0:00:02]} Qe7 {[%emt 0:02:41]} 31. Nd2 {[%emt 0:00:50]} Bc8 {[%emt 0:00:22]} 32. Nxc4 {[%emt 0:00:58]} Ba6 {[%emt 0:00:44]} 33. Ne3 {[%emt 0:00:02]} Qb7+ {[%emt 0:01:31]} 34. Ka1 {[%emt 0:04:08]} Qb5 {[%emt 0:00:05]} 35. c4 {[%emt 0:00:17]} Qb4 {[%emt 0:00:10]} 36. Rc1 {[%emt 0:00:06]} Qd2 {[%emt 0:00:13]} 37. Kb1 {[%emt 0:00:12]} Qd3+ {[%emt 0:00:09]} 38. Kb2 {[%emt 0:00:01]} Qxe4 {[%emt 0:00:30]} 39. Rc3 {[%emt 0:00:01]} Qd4 {[%emt 0:00:58]} 40. Kc2 {[%emt 0:00:29]} Bc8 {[%emt 0:01:36]} 41. f3 {[%emt 0:02:39]} Bd7 {[%emt 0:00:20]} 42. Ra3 {[%emt 0:00:22]} Be8 {[%emt 0:00:32]} 43. Rd3 {[%emt 0:01:09]} Qa1 {[%emt 0:00:52]} 44. Ra3 {[%emt 0:00:33]} Bxh5 {[%emt 0:00:15]} 45. Rxa7 {[%emt 0:00:05]} Bg6+ {[%emt 0:00:14]} 46. Kd2 {[%emt 0:00:02]} Qb2+ {[%emt 0:00:15]} 0-1

[Event "19th Delhi GM Open 2022"]
[Site "Delhi"]
[Date "2022.03.27"]
[Round "8.12"]
[White "Arjun Kalyan"]
[Black "Bharat Kumar Reddy Poluri"]
[Result "1/2-1/2"]
[ECO "C18"]
[WhiteElo "2506"]
[BlackElo "2263"]
[Annotator "ChessBase"]
[PlyCount "72"]
[EventDate "2022.03.22"]
[EventType "swiss"]
[EventCountry "IND"]
[SourceTitle "playchess.com"]
[Source "ChessBase"]
[SourceQuality "1"]
[TimeControl "5400+30"]

1. e4 {[%emt 0:00:03]} e6 {[%emt 0:00:07]} 2. d4 {[%emt 0:00:03]} d5 {[%emt 0:00:05]} 3. Nc3 {[%emt 0:00:04]} Bb4 {[%emt 0:01:12]} 4. e5 {[%emt 0:00:06]} c5 {[%emt 0:00:02]} 5. a3 {[%emt 0:00:05]} Bxc3+ {[%emt 0:00:20]} 6. bxc3 {[%emt 0:00:01]} Ne7 {[%emt 0:02:12]} 7. Qg4 {[%emt 0:00:07]} Nf5 {[%emt 0:03:51]} 8. Bd3 {[%emt 0:10:46]} h5 {[%emt 0:00:04]} 9. Qf4 {[%emt 0:02:02]} Qh4 {[%emt 0:00:43]} 10. Nf3 {[%emt 0:03:32]} Qxf4 {[%emt 0:00:35]} 11. Bxf4 {[%emt 0:00:01]} cxd4 {[%emt 0:01:54]} 12. cxd4 {[%emt 0:03:13]} Nc6 {[%emt 0:00:11]} 13. c3 {[%emt 0:01:50]} Bd7 {[%emt 0:00:11]} 14. Ke2 {[%emt 0:07:49]} Rc8 {[%emt 0:02:02]} 15. Nd2 {[%emt 0:01:16]} Na5 {[%emt 0:00:51]} 16. Rhc1 {[%emt 0:00:57]} b6 {[%emt 0:09:06]} 17. g3 {[%emt 0:03:54]} Rc6 {[%emt 0:02:43]} 18. h3 {[%emt 0:01:58]} f6 {[%emt 0:07:09]} 19. exf6 {[%emt 0:11:08]} gxf6 {[%emt 0:00:15]} 20. g4 {[%emt 0:00:09]} Ne7 {[%emt 0:05:08]} 21. g5 {[%emt 0:05:05]} e5 {[%emt 0:08:14]} 22. dxe5 {[%emt 0:00:16]} fxe5 {[%emt 0:00:25]} 23. Bxe5 {[%emt 0:01:12]} Re6 {[%emt 0:01:17]} 24. f4 {[%emt 0:00:12]} O-O {[%emt 0:02:30]} 25. Ke3 {[%emt 0:09:51]} Nec6 {[%emt 0:04:58]} 26. Nf3 {[%emt 0:01:12]} Nb3 {[%emt 0:00:07]} 27. Nd4 {[%emt 0:14:13]} Ncxd4 {[%emt 0:19:32]} 28. cxd4 {[%emt 0:00:06]} Nxa1 {[%emt 0:00:06]} 29. Rxa1 {[%emt 0:01:28]} Ree8 {[%emt 0:01:34]} 30. Rc1 {[%emt 0:05:38]} Rc8 {[%emt 0:00:12]} 31. Rxc8 {[%emt 0:00:07]} Bxc8 {[%emt 0:00:17]} 32. Bd6 {[%emt 0:03:31]} Rd8 {[%emt 0:00:47]} 33. Be5 {[%emt 0:00:27]} Rf8 {[%emt 0:00:23]} 34. Bd6 {[%emt 0:00:01]} Rd8 {[%emt 0:03:16]} 35. Be5 {[%emt 0:04:09]} Rf8 36. h4 Bf5 1/2-1/2

[Event "19th Delhi GM Open 2022"]
[Site "Delhi"]
[Date "2022.03.27"]
[Round "8.14"]
[White "Tahbaz, Arash"]
[Black "Manigandan, S S"]
[Result "1-0"]
[ECO "A48"]
[WhiteElo "2469"]
[BlackElo "2127"]
[Annotator "ChessBase"]
[PlyCount "110"]
[EventDate "2022.03.22"]
[EventType "swiss"]
[EventCountry "IND"]
[SourceTitle "playchess.com"]
[Source "ChessBase"]
[SourceQuality "1"]
[TimeControl "5400+30"]

1. d4 {[%emt 0:00:01]} Nf6 {[%emt 0:03:34]} 2. Nf3 {[%emt 0:00:05]} g6 {[%emt 0:02:41]} 3. Bg5 {[%emt 0:00:07]} Bg7 {[%emt 0:00:39]} 4. Nbd2 {[%emt 0:00:04]} d5 {[%emt 0:00:08]} 5. e3 {[%emt 0:00:05]} c5 {[%emt 0:00:28]} 6. c3 {[%emt 0:00:47]} O-O {[%emt 0:00:52]} 7. Be2 {[%emt 0:01:05]} Qb6 {[%emt 0:02:45]} 8. Qb3 {[%emt 0:00:02]} Nc6 {[%emt 0:02:12]} 9. O-O {[%emt 0:00:06]} Bg4 {[%emt 0:05:49]} 10. Bxf6 {[%emt 0:15:29]} Bxf6 {[%emt 0:00:42]} 11. Qxd5 {[%emt 0:00:30]} Qxb2 {[%emt 0:00:15]} 12. Qb3 {[%emt 0:00:14]} Qxb3 {[%emt 0:00:54]} 13. axb3 {[%emt 0:00:05]} cxd4 {[%emt 0:06:46]} 14. exd4 {[%emt 0:03:24]} Rfd8 {[%emt 0:10:39]} 15. h3 {[%emt 0:02:17]} Be6 {[%emt 0:08:07]} 16. b4 {[%emt 0:02:33]} b6 {[%emt 0:05:27]} 17. Ba6 {[%emt 0:00:06]} Bd5 {[%emt 0:03:33]} 18. Rfe1 {[%emt 0:01:27]} Rab8 {[%emt 0:02:51]} 19. Nh2 {[%emt 0:06:04]} b5 20. Ng4 Rb6 21. Ne3 e6 22. Nxd5 Rxd5 23. Ne4 Kg7 24. Nc5 e5 25. Bxb5 exd4 26. c4 Nxb4 27. cxd5 Rxb5 28. Ne4 Rxd5 29. Rxa7 d3 30. Rd1 h6 31. Rb7 Rd4 32. Nc5 Kf8 33. Kf1 Be7 34. Nd7+ Kg7 35. Ne5 Kf8 36. Ra1 Rd8 37. Rb1 Rd5 38. Nf3 Nc6 39. Rc1 Nd4 40. Nd2 Nc2 41. Rd1 Bc5 42. Ne4 Be7 43. Rc7 Nb4 44. Ra1 Re5 45. Rc4 Rd5 46. Rb1 Nc2 47. Ra4 Re5 48. Rd1 Rd5 49. Nc3 Rd8 50. Ra5 Nb4 51. Rb5 Rd4 52. Rb1 Kg7 53. Rb7 Bc5 54. Rc7 Bf8 55. Ra1 Nc2 1-0

[Event "19th Delhi GM Open 2022"]
[Site "Delhi"]
[Date "2022.03.29"]
[Round "10.6"]
[White "Iniyan, P."]
[Black "Neelash Saha"]
[Result "*"]
[ECO "C18"]
[WhiteElo "2516"]
[BlackElo "2445"]
[Annotator "ChessBase"]
[PlyCount "27"]
[EventDate "2022.03.22"]
[EventType "swiss"]
[EventCountry "IND"]
[SourceTitle "playchess.com"]
[Source "ChessBase"]
[SourceQuality "1"]
[TimeControl "5400+30"]

1. e4 {[%emt 0:08:49]} e6 {[%emt 0:00:02]} 2. d4 {[%emt 0:00:06]} d5 {[%emt 0:00:04]} 3. Nc3 {[%emt 0:00:05]} Bb4 {[%emt 0:00:02]} 4. e5 {[%emt 0:00:06]} c5 {[%emt 0:00:05]} 5. a3 {[%emt 0:00:05]} Bxc3+ {[%emt 0:00:02]} 6. bxc3 {[%emt 0:00:08]} Qa5 {[%emt 0:00:02]} 7. Bd2 {[%emt 0:00:08]} Qa4 {[%emt 0:00:03]} 8. h4 {[%emt 0:00:08]} Nc6 {[%emt 0:00:30]} 9. h5 {[%emt 0:00:33]} h6 {[%emt 0:00:06]} 10. Nf3 {[%emt 0:00:22]} Nge7 {[%emt 0:01:24]} 11. Rh4 {[%emt 0:00:48]} c4 {[%emt 0:00:10]} 12. g3 {[%emt 0:00:40]} Bd7 {[%emt 0:00:11]} 13. Rf4 {[%emt 0:05:02]} Rf8 {[%emt 0:04:35]} 14. Nh4 {[%emt 0:00:24]} *

[Event "19th Delhi GM Open 2022"]
[Site "Delhi"]
[Date "2022.03.29"]
[Round "10.9"]
[White "Harshavardhan G B"]
[Black "Mirzoev, Azer"]
[Result "*"]
[ECO "C72"]
[WhiteElo "2402"]
[BlackElo "2468"]
[Annotator "ChessBase"]
[PlyCount "29"]
[EventDate "2022.03.22"]
[EventType "swiss"]
[EventCountry "IND"]
[SourceTitle "playchess.com"]
[Source "ChessBase"]
[SourceQuality "1"]
[TimeControl "5400+30"]

1. e4 {[%emt 0:00:17]} e5 {[%emt 0:03:26]} 2. Nf3 {[%emt 0:00:32]} Nc6 {[%emt 0:00:05]} 3. Bb5 {[%emt 0:00:25]} a6 {[%emt 0:00:07]} 4. Ba4 {[%emt 0:00:06]} d6 {[%emt 0:00:13]} 5. O-O {[%emt 0:00:08]} Bd7 {[%emt 0:00:05]} 6. d4 {[%emt 0:00:06]} Nf6 {[%emt 0:00:40]} 7. Bxc6 {[%emt 0:01:44]} Bxc6 {[%emt 0:00:08]} 8. Re1 {[%emt 0:00:05]} Be7 {[%emt 0:00:32]} 9. Nc3 {[%emt 0:00:05]} exd4 {[%emt 0:01:30]} 10. Nxd4 {[%emt 0:00:06]} Bd7 {[%emt 0:00:07]} 11. Qf3 {[%emt 0:00:09]} O-O {[%emt 0:00:14]} 12. Nf5 {[%emt 0:03:14]} Bxf5 {[%emt 0:00:19]} 13. exf5 {[%emt 0:03:11]} c6 {[%emt 0:00:26]} 14. Bg5 {[%emt 0:00:25]} h6 {[%emt 0:03:01]} 15. Bh4 {[%emt 0:03:29]} *

[Event "19th Delhi GM Open 2022"]
[Site "Delhi"]
[Date "2022.03.29"]
[Round "10.12"]
[White "Vignesh N R"]
[Black "Bharat Kumar Reddy Poluri"]
[Result "*"]
[ECO "C07"]
[WhiteElo "2444"]
[BlackElo "2263"]
[Annotator "ChessBase"]
[PlyCount "20"]
[EventDate "2022.03.22"]
[EventType "swiss"]
[EventCountry "IND"]
[SourceTitle "playchess.com"]
[Source "ChessBase"]
[SourceQuality "1"]
[TimeControl "5400+30"]

1. e4 {[%emt 0:00:03]} e6 {[%emt 0:06:05]} 2. d4 {[%emt 0:00:06]} d5 {[%emt 0:00:13]} 3. Nd2 {[%emt 0:00:06]} c5 {[%emt 0:00:20]} 4. Ngf3 {[%emt 0:00:46]} cxd4 {[%emt 0:00:58]} 5. Nxd4 {[%emt 0:01:00]} Nc6 {[%emt 0:00:44]} 6. Bb5 {[%emt 0:00:17]} Bd7 {[%emt 0:00:05]} 7. Nxc6 {[%emt 0:00:05]} bxc6 {[%emt 0:00:56]} 8. Bd3 {[%emt 0:00:03]} Qc7 {[%emt 0:00:08]} 9. Qe2 {[%emt 0:00:33]} Ne7 {[%emt 0:00:19]} 10. O-O {[%emt 0:07:23]} Ng6 {[%emt 0:00:33]} *

[Event "19th Delhi GM Open 2022"]
[Site "Delhi"]
[Date "2022.03.29"]
[Round "10.13"]
[White "Divya Deshmukh"]
[Black "Laxman, R.R."]
[Result "*"]
[ECO "A46"]
[WhiteElo "2301"]
[BlackElo "2429"]
[Annotator "ChessBase"]
[PlyCount "22"]
[EventDate "2022.03.22"]
[EventType "swiss"]
[EventCountry "IND"]
[SourceTitle "playchess.com"]
[Source "ChessBase"]
[SourceQuality "1"]
[TimeControl "5400+30"]

1. d4 {[%emt 0:02:08]} Nf6 {[%emt 0:07:30]} 2. Nf3 e6 {[%emt 0:00:11]} 3. Bf4 {[%emt 0:00:12]} b6 {[%emt 0:00:16]} 4. e3 {[%emt 0:00:07]} Bb7 {[%emt 0:00:06]} 5. h3 {[%emt 0:00:06]} g6 {[%emt 0:00:44]} 6. Bd3 {[%emt 0:00:56]} Bg7 {[%emt 0:00:08]} 7. O-O {[%emt 0:00:26]} O-O {[%emt 0:00:06]} 8. c4 {[%emt 0:00:11]} d5 {[%emt 0:02:26]} 9. Nc3 {[%emt 0:00:24]} dxc4 {[%emt 0:00:48]} 10. Bxc4 {[%emt 0:00:07]} a6 {[%emt 0:00:07]} 11. a4 {[%emt 0:03:24]} Nbd7 {[%emt 0:05:02]} *